bitfinex/quotes_SOLUSD_20240628
["timestamp","ask_amount","ask_price","bid_price","bid_amount"]
[1719546288874,12.22502277,147.61,147.56,12.34]
[1719546289199,12.34,147.62,147.56,12.34]
[1719546289369,12.22487862,147.61,147.56,12.34]
[1719546289700,12.34,147.61,147.56,12.34]
[1719546292006,3.5470893,147.64,147.57,12.34]
[1719546292196,24.56381773,147.63,147.58,12.34]
[1719546292411,12.22381773,147.62,147.57,12.34]
[1719546293394,12.22381773,147.62,147.59,12.34]
[1719546293692,12.34,147.64,147.58,12.34]
[1719546293876,12.2236415,147.63,147.54,15.8136]
[1719546294075,12.2236415,147.62,147.58,12.34]
[1719546294674,12.34,147.63,147.58,12.34]
[1719546294903,12.22395404,147.62,147.58,12.34]
[1719546295070,12.34,147.63,147.58,12.34]
[1719546295401,12.22423169,147.62,147.57,12.34]
[1719546295584,12.34,147.63,147.57,12.34]
[1719546295780,12.22423593,147.62,147.57,12.34]
[1719546296087,12.34,147.63,147.57,12.34]
[1719546296289,12.22409392,147.62,147.57,12.34]
[1719546296597,12.22409392,147.61,147.57,12.34]
[1719546296795,12.22409392,147.62,147.57,12.34]
[1719546297103,31.33839392,147.62,147.56,12.34]
[1719546297279,12.22409392,147.61,147.56,12.34]
[1719546297476,24.56409392,147.61,147.56,12.34]
[1719546297811,15.8870893,147.62,147.56,12.34]
[1719546297993,12.22555133,147.61,147.56,12.34]
[1719546298170,12.22555133,147.61,147.57,12.34]
[1719546298968,22.6607893,147.63,147.57,12.34]
[1719546299170,12.22453705,147.62,147.57,12.34]
[1719546299484,12.22453705,147.61,147.57,12.34]
[1719546299692,12.22453705,147.62,147.57,12.34]
[1719546300276,12.22453705,147.62,147.58,12.34]
[1719546300872,12.22453705,147.61,147.58,12.34]
[1719546300974,22.6607893,147.63,147.54,15.8136]
[1719546301210,12.22509879,147.62,147.58,12.34]
[1719546301411,12.22509879,147.62,147.54,15.8136]
[1719546301570,12.22509879,147.62,147.57,12.34]
[1719546301779,12.22509879,147.62,147.58,12.34]
[1719546302283,22.6602893,147.64,147.58,12.34]
[1719546302485,12.22426791,147.63,147.58,12.34]
[1719546302682,12.22426791,147.62,147.58,12.34]
[1719546302894,22.6602893,147.64,147.59,1.35507112]
[1719546302895,3.5470893,147.64,147.59,1.35507112]
[1719546303197,19.1137,147.63,147.58,12.34]
[1719546303464,12.22348211,147.62,147.58,12.34]
[1719546303606,6.7733,147.64,147.58,12.34]
[1719546303912,12.22365671,147.63,147.58,12.34]
[1719546304096,12.22347007,147.62,147.58,12.34]
[1719546304273,19.1138,147.63,147.56,22.2448]
[1719546304471,24.56436719,147.62,147.56,28.0495]
[1719546304692,12.34,147.62,147.56,28.0495]
[1719546305410,12.34,147.62,147.57,12.34]
[1719546306638,16.5024,147.62,147.53,21.567]
[1719546306790,12.34,147.59,147.53,27.4924]
[1719546307191,12.34,147.55,147.49,6.3321]
[1719546307395,12.2306101,147.54,147.49,12.34]
[1719546307603,12.34,147.55,147.47,0.8248637]
[1719546307604,19.01049526,147.53,147.47,0.8248637]
[1719546307806,12.34,147.5,147.47,0.8248637]
[1719546308007,6.7792,147.51,147.47,0.8248637]
[1719546308008,12.34,147.49,147.47,0.8248637]
[1719546308678,12.34,147.48,147.47,0.8248637]
[1719546309393,6.7796,147.5,147.47,0.8248637]
[1719546309635,3.5470893,147.52,147.47,0.8248637]
[1719546309911,12.34,147.52,147.47,0.8248637]
[1719546310237,12.34,147.53,147.47,13.1648637]
[1719546310623,12.34,147.51,147.47,0.8248637]
[1719546311888,12.34,147.52,147.47,0.8248637]
[1719546312086,15.981,147.55,147.47,0.8248637]
[1719546312087,12.34,147.51,147.47,0.8248637]
[1719546312696,22.7584,147.55,147.47,13.1648637]
[1719546312808,12.34,147.53,147.48,12.34]
[1719546312982,12.34,147.53,147.47,0.8248637]
[1719546313185,12.34,147.53,147.48,12.34]
[1719546315235,12.34,147.52,147.47,13.1648637]
[1719546315923,12.34,147.52,147.47,0.8248637]
[1719546317020,15.981,147.55,147.48,12.34]
[1719546317210,12.34,147.54,147.48,12.34]
[1719546317420,12.34,147.53,147.48,12.34]
[1719546318799,6.7773,147.56,147.48,12.34]
[1719546319128,12.34,147.53,147.48,12.34]
[1719546321643,12.34,147.5,147.47,0.8248637]
[1719546321841,12.34,147.48,147.47,0.8248637]
[1719546325277,19.1205,147.48,147.47,0.8248637]
[1719546325438,19.1205,147.48,147.47,0.21778553]
[1719546326237,12.34,147.48,147.47,0.21778553]
[1719546326449,16.9465,147.53,147.47,0.21778553]
[1719546326759,12.34,147.48,147.47,0.21778553]
[1719546326959,6.7786,147.53,147.47,0.21778553]
[1719546327137,12.34,147.5,147.47,0.21778553]
[1719546327659,6.7789,147.52,147.47,0.21778553]
[1719546327834,12.34,147.5,147.47,0.21778553]
[1719546328641,6.7789,147.52,147.47,0.21778553]
[1719546329836,12.24143105,147.51,147.47,0.21778553]
[1719546330043,24.78,147.48,147.39,16.4911]
[1719546330234,6.7825,147.44,147.39,16.4911]
[1719546330659,6.782,147.45,147.39,16.4911]
[1719546331463,6.7814,147.47,147.39,16.4911]
[1719546331687,6.7816,147.46,147.39,16.4911]
[1719546334072,6.782,147.45,147.39,16.4911]
[1719546337068,6.7834,147.42,147.37,6.2588]
[1719546337543,6.7829,147.43,147.37,6.2588]
[1719546338163,7.07735155,147.43,147.36,16.6495]
[1719546338378,20.0,147.42,147.33,7.0258637]
[1719546338868,6.7846,147.4,147.33,7.0258637]
[1719546339159,20.0,147.39,147.33,7.0258637]
[1719546339765,20.0,147.4,147.33,7.0258637]
[1719546340667,20.0,147.4,147.33,0.8248637]
[1719546340841,6.7849,147.39,147.33,0.8248637]
[1719546341044,20.0,147.38,147.33,0.8248637]
[1719546341259,26.7843,147.4,147.33,0.8248637]
[1719546341846,20.0,147.4,147.33,0.8248637]
[1719546343367,6.7848,147.39,147.33,0.8248637]
[1719546343573,20.0,147.38,147.33,0.8248637]
[1719546345271,6.7843,147.4,147.33,0.8248637]
[1719546345478,13.86035155,147.43,147.34,15.8496]
[1719546345771,41.2004,147.47,147.35,6.2835]
[1719546345942,6.7821,147.45,147.35,6.2835]
[1719546346152,20.0,147.44,147.35,6.2835]
[1719546346447,6.7825,147.44,147.35,6.2835]
[1719546347255,6.782,147.45,147.35,6.2835]
[1719546347905,20.0,147.44,147.35,6.2835]
[1719546349566,6.7815,147.46,147.35,6.2835]
[1719546349773,7.07879773,147.48,147.37,16.4282]
[1719546349972,6.7802,147.49,147.38,20.0]
[1719546349973,20.0,147.47,147.38,20.0]
[1719546350150,20.0,147.48,147.39,6.2625]
[1719546350359,20.0,147.49,147.39,6.2625]
[1719546352562,20.0,147.51,147.4,36.16]
[1719546354676,6.7796,147.5,147.4,36.16]
[1719546354862,6.7792,147.51,147.4,36.16]
[1719546355064,20.0,147.5,147.4,36.16]
[1719546358100,26.78,147.5,147.4,36.16]
[1719546358247,20.0,147.5,147.4,36.16]
[1719546358573,20.0,147.53,147.4,36.16]
[1719546358880,6.7796,147.5,147.4,36.16]
[1719546364491,7.08489108,147.52,147.4,36.16]
[1719546364656,20.0,147.53,147.42,15.4476]
[1719546364857,23.2264,147.58,147.44,6.3462]
[1719546364858,6.7764,147.58,147.44,6.3462]
[1719546365193,12.23421541,147.57,147.45,36.46427641]
[1719546365363,6.7767,147.57,147.46,1.35576269]
[1719546366074,57.125,147.59,147.45,35.1085]
[1719546366276,12.2334103,147.58,147.45,35.1085]
[1719546366480,24.78,147.56,147.45,35.1085]
[1719546366681,20.0,147.55,147.45,35.1085]
[1719546367275,26.7774,147.55,147.45,35.1085]
[1719546367479,20.0,147.55,147.45,35.1085]
[1719546368067,6.7768,147.57,147.45,35.1085]
[1719546368299,20.0,147.56,147.46,21.4097]
[1719546368591,20.0,147.56,147.47,20.0]
[1719546368755,20.0,147.58,147.47,20.0]
[1719546369689,20.0,147.58,147.48,0.68944644]
[1719546369899,20.0,147.58,147.49,6.105]
[1719546370185,6.7756,147.59,147.49,6.105]
[1719546370364,26.7762,147.58,147.49,6.105]
[1719546372356,20.0,147.58,147.49,6.105]
[1719546377892,26.776,147.58,147.49,6.105]
[1719546378640,6.7766,147.57,147.49,6.105]
[1719546378815,20.0,147.56,147.49,6.105]
[1719546380285,20.0,147.57,147.49,6.105]
[1719546383996,20.0,147.58,147.49,6.105]
[1719546384569,20.0,147.58,147.49,18.485]
[1719546384783,12.38,147.55,147.49,18.485]
[1719546384994,20.0,147.58,147.51,12.38]
[1719546385197,20.0,147.6,147.52,28.7438]
[1719546385494,12.38,147.57,147.52,28.7438]
[1719546386070,12.38,147.57,147.53,1.30176862]
[1719546386910,12.38,147.57,147.52,28.7438]
[1719546387695,12.38,147.56,147.52,16.3638]
[1719546387887,12.38,147.55,147.52,16.3638]
[1719546388669,6.7755,147.59,147.52,16.3638]
[1719546389099,6.7751,147.6,147.52,16.3638]
[1719546389271,20.0,147.59,147.52,16.3638]
[1719546391972,20.0,147.6,147.52,16.3638]
[1719546395012,6.7778,147.54,147.46,15.1321]
[1719546395214,31.5393,147.51,147.42,15.1321]
[1719546395385,20.0,147.5,147.42,15.1321]
[1719546396085,26.7797,147.5,147.42,15.1321]
[1719546396488,20.0,147.5,147.42,15.1321]
[1719546397816,26.7797,147.5,147.42,15.1321]
[1719546398188,20.0,147.5,147.42,15.1321]
[1719546398502,30.0,147.48,147.42,15.1321]
[1719546399604,30.0,147.49,147.42,15.1321]
[1719546399802,20.0,147.48,147.42,15.1321]
[1719546401990,20.0,147.5,147.42,15.1321]
[1719546408732,12.39,147.48,147.42,27.5221]
[1719546410714,20.0,147.5,147.43,18.4788]
[1719546410907,20.0,147.5,147.44,28.6691]
[1719546410908,12.39,147.5,147.44,28.6691]
[1719546411415,12.39,147.51,147.45,12.39]
[1719546413101,3.52056106,147.57,147.46,12.39]
[1719546413321,12.39,147.52,147.46,12.39]
[1719546413509,6.7777,147.55,147.46,12.39]
[1719546413780,12.39,147.51,147.46,12.39]
[1719546414420,70.0468941,147.56,147.44,16.2791]
[1719546414627,12.39,147.49,147.44,16.2791]
[1719546415818,12.39,147.49,147.44,28.6691]
[1719546416521,12.39,147.5,147.44,28.6691]
[1719546419031,27.08216692,147.57,147.46,12.39]
[1719546419032,37.40306102,147.57,147.46,12.39]
[1719546419326,20.0,147.57,147.5,34.3495]
[1719546419526,12.39,147.55,147.51,1.35558847]
[1719546419702,20.0,147.57,147.51,13.74558847]
[1719546420079,12.39,147.56,147.52,1.35555548]
[1719546420413,20.0,147.59,147.52,1.35555548]
[1719546420603,26.7755,147.59,147.5,21.9595]
[1719546423030,6.776,147.58,147.5,21.9595]
[1719546423206,20.0,147.57,147.5,21.9595]
[1719546424326,6.7769,147.56,147.5,21.9595]
[1719546424525,20.0,147.55,147.5,21.9595]
[1719546427030,20.0,147.57,147.5,21.9595]
[1719546427214,12.23237948,147.56,147.5,21.9595]
[1719546427414,20.0,147.55,147.5,21.9595]
[1719546427927,20.0,147.57,147.5,21.9595]
[1719546429315,26.7765,147.57,147.5,21.9595]
[1719546429513,12.23216513,147.56,147.5,21.9595]
[1719546429731,20.0,147.55,147.5,21.9595]
[1719546429928,26.7765,147.57,147.5,21.9595]
[1719546430130,12.23216513,147.56,147.5,21.9595]
[1719546430441,20.0,147.55,147.5,21.9595]
[1719546431011,20.0,147.56,147.5,21.9595]
[1719546432123,26.777,147.56,147.5,21.9595]
[1719546433115,20.0,147.56,147.5,21.9595]
[1719546436516,20.0,147.57,147.5,21.9595]
[1719546437023,12.23170968,147.56,147.5,21.9595]
[1719546437224,20.0,147.55,147.5,21.9595]
[1719546437433,26.7764,147.57,147.5,21.9595]
[1719546437613,12.23146483,147.56,147.5,21.9595]
[1719546437843,20.0,147.55,147.5,21.9595]
[1719546438388,6.7764,147.57,147.5,21.9595]
[1719546438389,20.0,147.56,147.5,21.9595]
[1719546438839,42.15311338,147.59,147.5,21.9595]
[1719546439023,32.23079751,147.58,147.5,21.9595]
[1719546439218,20.0,147.58,147.5,21.9595]
[1719546442231,3.5440941,147.6,147.5,21.9595]
[1719546442436,12.22985273,147.59,147.5,21.9595]
[1719546442638,12.37,147.58,147.52,12.37]
[1719546443021,12.37,147.57,147.52,12.37]
[1719546443352,12.37,147.56,147.5,34.3295]
[1719546444142,12.37,147.56,147.51,12.37]
[1719546445052,12.37,147.57,147.52,12.37]
[1719546445657,30.3186941,147.61,147.52,12.37]
[1719546445820,12.37,147.57,147.51,12.37]
[1719546447840,12.37,147.57,147.5,21.9595]
[1719546447841,3.5440941,147.62,147.53,12.37]
[1719546448138,12.37,147.6,147.55,12.37]
[1719546448342,3.5440941,147.64,147.57,28.6171]
[1719546448650,12.37,147.62,147.58,1.35265442]
[1719546449729,6.7728,147.65,147.58,1.35265442]
[1719546449936,12.37,147.62,147.58,1.35265442]
[1719546451324,20.0,147.64,147.58,1.35265442]
[1719546451651,12.37,147.65,147.59,12.37]
[1719546451852,12.37,147.65,147.6,1.35111721]
[1719546452150,12.37,147.65,147.59,12.37]
[1719546452758,26.9799048,147.69,147.57,22.7392]
[1719546452985,12.37,147.62,147.57,35.1092]
[1719546453251,12.37,147.61,147.57,22.7392]
[1719546453435,12.37,147.62,147.57,22.7392]
[1719546458236,6.7724,147.66,147.57,22.7392]
[1719546458445,12.37,147.61,147.57,22.7392]
[1719546458953,12.37,147.62,147.57,22.7392]
[1719546463762,12.37,147.59,147.57,16.2471]
[1719546463954,12.37,147.58,147.53,22.5922]
[1719546464175,12.37,147.55,147.53,22.5922]
[1719546464330,12.37,147.55,147.53,16.4525]
[1719546465267,3.53902662,147.62,147.5,18.5097]
[1719546465268,12.37,147.54,147.5,6.1397]
[1719546465462,12.37,147.53,147.5,6.1397]
[1719546468070,12.37,147.54,147.5,6.1397]
[1719546468661,15.5158,147.59,147.5,6.1397]
[1719546468866,12.37,147.54,147.5,6.1397]
[1719546469971,12.37,147.51,147.49,15.6623]
[1719546470165,12.37,147.56,147.49,15.6623]
[1719546470365,12.37,147.52,147.49,15.6623]
[1719546470552,12.37,147.51,147.49,15.6623]
[1719546471041,20.0,147.55,147.46,6.6418]
[1719546471239,12.37,147.49,147.46,6.6418]
[1719546473275,12.37,147.5,147.46,6.6418]
[1719546474272,20.0,147.55,147.46,6.6418]
[1719546474443,3.54345342,147.56,147.46,19.0118]
[1719546474444,12.37,147.52,147.46,19.0118]
[1719546474862,12.37,147.51,147.46,19.0118]
[1719546479321,12.37,147.52,147.46,6.6418]
[1719546479456,12.37,147.52,147.47,12.37]
[1719546480588,12.37,147.53,147.47,12.37]
[1719546480773,12.37,147.54,147.48,12.37]
[1719546480972,20.0,147.56,147.49,12.37]
[1719546481282,12.37,147.54,147.49,12.37]
[1719546482064,110.62617036,147.6,147.47,15.4784]
[1719546482065,10.62617036,147.6,147.47,15.4784]
[1719546482265,3.54345342,147.62,147.52,12.37]
[1719546482469,12.37,147.58,147.52,12.37]
[1719546482679,20.0,147.6,147.52,15.4784]
[1719546482865,12.37,147.59,147.52,15.4784]
[1719546483183,12.37,147.57,147.52,27.8484]
[1719546485476,12.37,147.59,147.53,12.37]
[1719546486191,12.37,147.59,147.54,12.37]
[1719546486361,12.37,147.59,147.52,15.4784]
[1719546486683,12.37,147.59,147.53,12.37]
[1719546486993,12.37,147.58,147.53,12.37]
[1719546488885,12.37,147.58,147.52,15.4784]
[1719546489103,68.12285342,147.63,147.52,15.4784]
[1719546489104,12.37,147.55,147.52,15.4784]
[1719546490480,6.7756,147.59,147.52,15.4784]
[1719546490679,12.37,147.56,147.52,15.4784]
[1719546490893,10.31755342,147.62,147.52,27.8484]
[1719546490894,12.37,147.57,147.52,27.8484]
[1719546491264,68.12285342,147.63,147.53,12.37]
[1719546491489,12.37,147.59,147.54,12.37]
[1719546491676,12.37,147.6,147.55,12.37]
[1719546492973,20.0,147.62,147.55,12.37]
[1719546493182,12.37,147.6,147.55,12.37]
[1719546493380,12.37,147.6,147.54,12.37]
[1719546493790,20.0,147.62,147.52,15.4784]
[1719546493791,12.37,147.57,147.52,15.4784]
[1719546494468,23.54345342,147.62,147.53,12.37]
[1719546494660,23.54345342,147.62,147.54,12.37]
[1719546494661,12.37,147.59,147.54,12.37]
[1719546494860,12.37,147.6,147.54,12.37]
[1719546495168,20.0,147.59,147.54,12.37]
[1719546495977,12.37,147.6,147.54,12.37]
[1719546496294,32.37,147.59,147.54,12.37]
[1719546497295,32.37,147.59,147.53,12.37]
[1719546498102,32.37,147.59,147.54,12.37]
[1719546498595,32.37,147.59,147.52,15.4784]
[1719546498768,32.37,147.59,147.53,12.37]
[1719546498972,12.37,147.58,147.53,12.37]
[1719546500003,20.0,147.59,147.53,12.37]
[1719546500174,12.37,147.58,147.53,12.37]
[1719546500517,12.37,147.58,147.52,15.4784]
[1719546500794,12.37,147.58,147.53,12.37]
[1719546511698,12.37,147.58,147.52,27.8484]
[1719546512105,20.0,147.6,147.52,27.8484]
[1719546512396,12.37,147.58,147.52,27.8484]
[1719546515220,12.37,147.58,147.53,12.37]
[1719546518330,3.54952001,147.61,147.52,15.4784]
[1719546518495,15.91952001,147.61,147.55,12.37]
[1719546519102,12.37,147.6,147.55,12.37]
[1719546524334,3.54952001,147.61,147.55,12.37]
[1719546524629,12.37,147.6,147.55,12.37]
[1719546527405,12.37,147.6,147.54,12.37]
[1719546528230,3.54952001,147.61,147.54,12.37]
[1719546531434,12.22780923,147.6,147.54,12.37]
[1719546531729,12.22780923,147.59,147.54,12.37]
[1719546532035,3.54952001,147.6,147.54,12.37]
[1719546532128,12.22782726,147.59,147.54,12.37]
[1719546532306,12.22782726,147.58,147.54,12.37]
[1719546532507,3.54952001,147.6,147.54,12.37]
[1719546532705,12.22775335,147.59,147.54,12.37]
[1719546532910,3.54952001,147.6,147.54,12.37]
[1719546532911,12.22775335,147.58,147.54,12.37]
[1719546533129,3.54952001,147.6,147.54,12.37]
[1719546533410,12.22782338,147.59,147.54,12.37]
[1719546533613,12.22782338,147.58,147.54,12.37]
[1719546533923,3.54952001,147.6,147.54,12.37]
[1719546534132,12.22782514,147.59,147.52,15.4784]
[1719546534316,12.22782514,147.58,147.54,12.37]
[1719546534641,3.54952001,147.6,147.54,12.37]
[1719546534812,12.22782938,147.59,147.54,12.37]
[1719546535039,3.54952001,147.6,147.54,12.37]
[1719546535242,12.22782726,147.59,147.54,12.37]
[1719546535507,12.22782726,147.58,147.54,12.37]
[1719546535726,12.22782726,147.59,147.54,12.37]
[1719546536141,12.22782726,147.59,147.52,15.4784]
[1719546536331,12.37,147.57,147.52,15.4784]
[1719546536530,15.91952001,147.59,147.53,12.37]
[1719546536721,12.2279295,147.58,147.53,12.37]
[1719546536938,15.91952001,147.59,147.52,15.4784]
[1719546537130,24.5979369,147.58,147.52,15.4784]
[1719546537315,12.2279369,147.57,147.53,12.37]
[1719546537636,12.2279369,147.57,147.52,15.4784]
[1719546537637,12.2279369,147.57,147.54,12.37]
[1719546537835,12.2279369,147.58,147.53,12.37]
[1719546538385,12.37,147.59,147.53,12.37]
[1719546538641,12.22783467,147.58,147.53,12.37]
[1719546538826,12.37,147.59,147.53,12.37]
[1719546539032,12.22785368,147.58,147.53,12.37]
[1719546539341,12.37,147.59,147.53,12.37]
[1719546539637,12.22785368,147.58,147.53,12.37]
[1719546539830,12.37,147.59,147.53,12.37]
[1719546540040,12.22776675,147.58,147.53,12.37]
[1719546540242,12.37,147.59,147.53,12.37]
[1719546540544,12.22776463,147.58,147.53,12.37]
[1719546540866,12.37,147.59,147.53,12.37]
[1719546541078,12.22783678,147.58,147.53,12.37]
[1719546541214,12.37,147.59,147.53,12.37]
[1719546541410,12.22783467,147.58,147.52,15.4784]
[1719546541612,12.22783467,147.57,147.52,15.4784]
[1719546541824,12.37,147.55,147.49,15.2075]
[1719546542029,12.37,147.55,147.5,12.37]
[1719546542243,12.37,147.55,147.49,15.2075]
[1719546542421,12.37,147.54,147.49,27.5775]
[1719546542811,12.37,147.54,147.49,15.2075]
[1719546543030,12.37,147.54,147.49,27.5775]
[1719546543925,12.37,147.55,147.49,27.5775]
[1719546544844,12.37,147.55,147.5,12.37]
[1719546547099,19.11012001,147.58,147.49,15.2075]
[1719546547100,3.54952001,147.58,147.49,15.2075]
[1719546547242,12.22928551,147.57,147.53,12.37]
[1719546547442,12.22928551,147.56,147.53,12.37]
[1719546547633,3.54952001,147.58,147.53,12.37]
[1719546547828,12.22926994,147.57,147.53,12.37]
[1719546548038,12.22926994,147.56,147.53,12.37]
[1719546548368,3.54952001,147.61,147.55,12.37]
[1719546548524,12.22644166,147.6,147.57,12.37]
[1719546548724,3.54952001,147.61,147.57,12.37]
[1719546549045,12.22633473,147.6,147.57,12.37]
[1719546549241,15.91952001,147.62,147.57,12.37]
[1719546549437,12.22591038,147.61,147.57,12.37]
[1719546549653,15.91952001,147.62,147.57,12.37]
[1719546549819,12.22590086,147.61,147.57,12.37]
[1719546550060,15.91952001,147.62,147.57,12.37]
[1719546550300,12.22618305,147.61,147.57,12.37]
[1719546550470,15.91952001,147.62,147.57,12.37]
[1719546550757,12.22604301,147.61,147.56,12.37]
[1719546550934,12.22604301,147.6,147.56,12.37]
[1719546551248,15.91952001,147.62,147.56,12.37]
[1719546551431,12.22590474,147.61,147.56,12.37]
[1719546551628,15.91952001,147.62,147.56,12.37]
[1719546551836,12.22590474,147.61,147.56,12.37]
[1719546552045,12.37,147.62,147.56,12.37]
[1719546552237,12.22625695,147.61,147.56,12.37]
[1719546552445,12.37,147.62,147.56,12.37]
[1719546552746,12.22583473,147.61,147.56,12.37]
[1719546552957,12.37,147.62,147.56,12.37]
[1719546553331,12.22590474,147.61,147.56,12.37]
[1719546553533,12.37,147.62,147.56,12.37]
[1719546553847,12.22583684,147.61,147.56,12.37]
[1719546554036,15.91952001,147.62,147.56,12.37]
[1719546554238,12.22583473,147.61,147.56,12.37]
[1719546554534,12.37,147.62,147.56,12.37]
[1719546554737,12.22583684,147.61,147.56,12.37]
[1719546554951,15.91952001,147.62,147.56,12.37]
[1719546555122,12.22646701,147.61,147.56,12.37]
[1719546555330,15.91952001,147.62,147.56,12.37]
[1719546555530,12.22618481,147.61,147.56,12.37]
[1719546555728,12.37,147.62,147.56,12.37]
[1719546555938,12.22583684,147.61,147.56,12.37]
[1719546556157,12.37,147.62,147.56,12.37]
[1719546556610,12.22583473,147.61,147.56,12.37]
[1719546556728,12.37,147.62,147.57,12.37]
[1719546557048,12.22583261,147.61,147.57,12.37]
[1719546557351,12.37,147.62,147.57,12.37]
[1719546558353,3.54952001,147.63,147.58,1.35513987]
[1719546558557,15.91952001,147.65,147.6,12.37]
[1719546558778,3.54952001,147.67,147.6,12.37]
[1719546559056,24.59274463,147.66,147.6,12.37]
[1719546559354,12.22274463,147.65,147.6,12.37]
[1719546559663,12.37,147.66,147.6,12.37]
[1719546560235,12.37,147.65,147.6,12.37]
[1719546565234,6.7729,147.65,147.57,18.725]
[1719546565456,12.37,147.63,147.57,18.725]
[1719546565659,12.37,147.63,147.58,12.37]
[1719546565855,12.37,147.64,147.58,12.37]
[1719546569654,12.37,147.63,147.57,6.355]
[1719546569842,12.37,147.63,147.58,12.37]
[1719546570049,12.37,147.63,147.57,18.725]
[1719546576172,12.37,147.63,147.58,12.37]
[1719546579270,6.7719,147.67,147.58,12.37]
[1719546579564,12.37,147.64,147.58,12.37]
[1719546580493,12.37,147.64,147.59,12.37]
[1719546580966,20.0,147.66,147.6,12.37]
[1719546580967,12.37,147.65,147.6,12.37]
[1719546581941,12.37,147.65,147.59,12.37]
[1719546583371,20.0,147.66,147.6,12.37]
[1719546583578,12.37,147.65,147.6,12.37]
[1719546583943,12.37,147.65,147.59,12.37]
[1719546584794,26.7714,147.68,147.6,12.37]
[1719546584973,12.37,147.66,147.6,12.37]
[1719546585152,20.0,147.65,147.6,12.37]
[1719546588076,32.37,147.65,147.6,12.37]
[1719546588504,20.0,147.65,147.6,12.37]
[1719546592764,15.258,147.69,147.61,13.72480975]
[1719546592962,12.37,147.67,147.61,13.72480975]
[1719546593374,12.37,147.67,147.62,12.37]
[1719546594585,26.7714,147.68,147.62,12.37]
[1719546594783,12.37,147.67,147.62,12.37]
[1719546595503,26.7714,147.68,147.62,12.37]
[1719546595685,12.37,147.67,147.62,12.37]
[1719546598396,26.7714,147.68,147.62,12.37]
[1719546598571,12.37,147.67,147.62,12.37]
[1719546602186,32.37,147.68,147.62,12.37]
[1719546602379,12.37,147.68,147.62,12.37]
[1719546602581,12.22098659,147.67,147.62,12.37]
[1719546602788,3.54385201,147.7,147.65,12.37]
[1719546603094,12.21983929,147.69,147.65,12.37]
[1719546603310,12.37,147.71,147.65,12.37]
[1719546603470,12.21965287,147.7,147.65,12.37]
[1719546603759,12.37,147.71,147.65,12.37]
[1719546603951,12.21953865,147.7,147.65,12.37]
[1719546604168,12.37,147.7,147.65,12.37]
[1719546605205,10.31375201,147.72,147.65,12.37]
[1719546605206,12.37,147.71,147.65,12.37]
[1719546605373,12.21944796,147.7,147.65,12.37]
[1719546605580,12.37,147.71,147.65,12.37]
[1719546605877,12.21946483,147.7,147.65,12.37]
[1719546606191,3.54385201,147.72,147.65,12.37]
[1719546606394,24.58945744,147.71,147.65,12.37]
[1719546606605,12.37,147.71,147.66,12.37]